fUSD/lending_fUSD_20240714
["ID","MTS","AMOUNT","RATE_DAILY","PERIOD"]
[332164757,1720997436691,-500.0,0.00013862,2]
[332164758,1720997436701,-500.0,0.00013862,2]
[332164759,1720997436710,-500.0,0.00013862,2]
[332164760,1720997436720,-500.0,0.00013862,2]
[332164761,1720997436729,-500.0,0.00013862,2]
[332164762,1720997436739,-562.27,0.00013862,2]
[332164763,1720997436749,-500.0,0.00013862,2]
[332164764,1720997436759,-500.0,0.00013862,2]
[332164765,1720997436770,-500.0,0.00013862,2]
[332164766,1720997436782,-500.0,0.00013862,2]
[332164767,1720997436793,-500.0,0.00013862,2]
[332164768,1720997436803,-500.0,0.00013862,2]
[332164769,1720997436814,-500.0,0.00013862,2]
[332164770,1720997436823,-500.0,0.00013862,2]
[332164771,1720997436832,-500.0,0.00013862,2]
[332164772,1720997436842,-500.0,0.00013862,2]
[332164773,1720997436851,-500.0,0.00013862,2]
[332164774,1720997436861,-500.0,0.00013862,2]
[332164775,1720997436870,-500.0,0.00013862,2]
[332164776,1720997436879,-500.0,0.00013862,2]
[332164777,1720997436889,-500.0,0.00013862,2]
[332164778,1720997436898,-500.0,0.00013862,2]
[332164779,1720997436909,-527.5998448,0.00013862,2]
[332164780,1720997436919,-500.0,0.00013862,2]
[332164781,1720997436928,-500.0,0.00013862,2]
[332164782,1720997436937,-665.98,0.00013862,2]
[332164783,1720997436946,-500.0,0.00013862,2]
[332164784,1720997436957,-500.0,0.00013862,2]
[332164785,1720997436966,-500.0,0.00013862,2]
[332164786,1720997436976,-424.07,0.00013862,2]
[332164787,1720997436985,-336.81976606,0.00013862,2]
[332164788,1720997436995,-500.0,0.00013862,2]
[332164789,1720997437005,-500.0,0.00013862,2]
[332164790,1720997437016,-500.0,0.00013862,2]
[332164791,1720997437028,-500.0,0.00013862,2]
[332164792,1720997437039,-731.49,0.00013862,2]
[332164793,1720997437049,-500.0,0.00013862,2]
[332164794,1720997437058,-500.0,0.00013862,2]
[332164795,1720997437070,-510.17,0.00013862,2]
[332164796,1720997437079,-771.38,0.00013862,2]
[332164797,1720997437090,-500.0,0.00013862,2]
[332164798,1720997437100,-500.0,0.00013862,2]
[332164799,1720997437111,-150.04203196,0.00013862,2]
[332164800,1720997437122,-500.0,0.00013862,2]
[332164801,1720997437132,-516.53148851,0.00013862,2]
[332164802,1720997437348,-1010.84700863,0.00013862,2]
[332164803,1720997437360,-428.32614833,0.00013862,2]
[332164804,1720997437370,-271.92535453,0.00013862,2]
[332164805,1720997437382,-500.0,0.00013862,2]
[332164806,1720997437391,-500.0,0.00013862,2]
[332164807,1720997437401,-271.7,0.00013862,2]
[332164808,1720997437411,-500.0,0.00013862,2]
[332164809,1720997437421,-500.0,0.00013862,2]
[332164810,1720997437431,-500.0,0.00013862,2]
[332164811,1720997437441,-500.0,0.00013862,2]
[332164812,1720997437451,-500.0,0.00013863,2]
[332164813,1720997437459,-571.47,0.00013863,2]
[332164814,1720997437469,-500.0,0.00013863,2]
[332164815,1720997437478,-500.0,0.00013863,2]
[332164816,1720997437488,-500.0,0.00013863,2]
[332164817,1720997437499,-500.0,0.00013863,2]
[332164818,1720997437508,-500.0,0.00013863,2]
[332164819,1720997437517,-500.0,0.00013863,2]
[332164820,1720997437527,-500.0,0.00013863,2]
[332164821,1720997437537,-500.0,0.00013863,2]
[332164822,1720997437547,-500.0,0.00013863,2]
[332164823,1720997437557,-500.0,0.00013863,2]
[332164824,1720997437568,-500.0,0.00013863,2]
[332164825,1720997437578,-500.0,0.00013863,2]
[332164826,1720997437587,-500.0,0.00013863,2]
[332164827,1720997437596,-500.0,0.00013863,2]
[332164828,1720997437605,-1201.69,0.00013863,2]
[332164829,1720997437614,-500.0,0.00013863,2]
[332164830,1720997437623,-500.0,0.00013863,2]
[332164831,1720997437632,-500.0,0.00013863,2]
[332164832,1720997437641,-500.0,0.00013863,2]
[332164833,1720997437651,-500.0,0.00013863,2]
[332164834,1720997437659,-188.84797582,0.00013863,2]
[332164835,1720997437669,-500.0,0.00013863,2]
[332164836,1720997437678,-500.0,0.00013863,2]
[332164837,1720997437687,-500.0,0.00013863,2]
[332164838,1720997437696,-500.0,0.00013863,2]
[332164839,1720997437706,-500.0,0.00013863,2]
[332164840,1720997437715,-500.0,0.00013863,2]
[332164841,1720997437724,-500.0,0.00013863,2]
[332164842,1720997437734,-500.0,0.00013863,2]
[332164843,1720997437743,-500.0,0.00013863,2]
[332164844,1720997437752,-500.0,0.00013863,2]
[332164845,1720997437762,-500.0,0.00013863,2]
[332164846,1720997437771,-500.0,0.00013863,2]
[332164847,1720997437779,-152.92014505,0.00013863,2]
[332164848,1720997437789,-500.0,0.00013863,2]
[332164849,1720997437798,-500.0,0.00013863,2]
[332164850,1720997437807,-500.0,0.00013863,2]
[332164851,1720997437817,-258.94,0.00013863,2]
[332164852,1720997437827,-500.0,0.00013863,2]
[332164853,1720997437836,-500.0,0.00013863,2]
[332164854,1720997437846,-500.0,0.00013863,2]
[332164855,1720997437855,-233.72655026,0.00013863,2]
[332164856,1720997437864,-454.50419582,0.00013863,2]
[332164857,1720997437879,-45.49580418,0.00013863,2]
[332164858,1720997437889,-500.0,0.00013863,2]
[332164859,1720997437898,-366.65973148,0.00013863,2]
[332164861,1720997437907,-500.0,0.00013863,2]
[332164863,1720997437918,-500.0,0.00013863,2]
[332164865,1720997437927,-500.0,0.00013863,2]
[332164867,1720997437937,-500.0,0.00013863,2]
[332164869,1720997437946,-500.0,0.00013863,2]
[332164871,1720997437958,-500.0,0.00013863,2]
[332164873,1720997437968,-500.0,0.00013863,2]
[332164875,1720997437979,-600.09,0.00013863,2]
[332164876,1720997437988,-636.95,0.00013863,2]
[332164877,1720997437997,-500.0,0.00013863,2]
[332164878,1720997438006,-500.0,0.00013863,2]
[332164879,1720997438015,-500.0,0.00013863,2]
[332164880,1720997438025,-500.0,0.00013887,2]
[332164881,1720997438034,-3000.0,0.00013888,2]
[332164882,1720997438044,-500.0,0.00013888,2]
[332164883,1720997438053,-500.0,0.00013888,2]
[332164884,1720997438064,-3382.76436607,0.00013899,2]
[332164885,1720997438074,-789.61914132,0.00013899,2]
[332164886,1720997438085,-155.0,0.00013899,2]
[332164887,1720997438095,-349.81758026,0.000139,2]
[332164888,1720997438104,-353.35343905,0.000139,2]
[332164889,1720997438114,-1311.96624744,0.000139,2]
[332164890,1720997438123,-1017.0,0.000139,2]
[332164891,1720997438133,-500.0,0.00013916,2]
[332164892,1720997438142,-588.17,0.00013916,2]
[332164893,1720997438152,-500.0,0.00013916,2]
[332164894,1720997438162,-562.27,0.00013916,2]
[332164895,1720997438171,-500.0,0.00013916,2]
[332164896,1720997438180,-500.0,0.00013916,2]
[332164897,1720997438190,-500.0,0.00013916,2]
[332164898,1720997438239,-731.49,0.00013916,2]
[332164899,1720997438249,-510.17,0.00013916,2]
[332164900,1720997438258,-771.38,0.00013916,2]
[332164901,1720997438267,-2227.63,0.00013916,2]
[332164902,1720997438276,-500.0,0.00013916,2]
[332164903,1720997438286,-500.0,0.00013916,2]
[332164904,1720997438295,-500.0,0.00013917,2]
[332164905,1720997438304,-571.47,0.00013917,2]
[332164906,1720997438314,-500.0,0.00013917,2]
[332164907,1720997438323,-500.0,0.00013917,2]
[332164908,1720997438332,-500.0,0.00013917,2]
[332164909,1720997438342,-500.0,0.00013917,2]
[332164910,1720997438352,-500.0,0.00013917,2]
[332164911,1720997438361,-171.48750221,0.00013917,2]
[332164912,1720997438370,-500.0,0.00013917,2]
[332164913,1720997438379,-500.0,0.00013917,2]
[332164914,1720997438388,-500.0,0.00013917,2]
[332164915,1720997438398,-500.0,0.00013917,2]
[332164916,1720997438408,-500.0,0.00013917,2]
[332164917,1720997438417,-500.0,0.00013917,2]
[332164918,1720997438426,-500.0,0.00013917,2]
[332164919,1720997438435,-500.0,0.00013917,2]
[332164920,1720997438444,-500.0,0.00013917,2]
[332164921,1720997438456,-783.83,0.00013917,2]
[332164922,1720997438466,-500.0,0.00013917,2]
[332164923,1720997438475,-1201.69,0.00013917,2]
[332164924,1720997438484,-500.0,0.00013917,2]
[332164925,1720997438496,-500.0,0.00013917,2]
[332164926,1720997438505,-500.0,0.00013917,2]
[332164927,1720997438515,-134.5237717,0.00013917,2]
[332164928,1720997438527,-365.4762283,0.00013917,2]
[332164929,1720997438537,-500.0,0.00013917,2]
[332164930,1720997438546,-500.0,0.00013917,2]
[332164931,1720997438556,-500.0,0.00013917,2]
[332164932,1720997438565,-503.78,0.00013917,2]
[332164933,1720997438576,-500.0,0.00013917,2]
[332164934,1720997438585,-500.0,0.00013917,2]
[332164935,1720997438594,-500.0,0.00013917,2]
[332164936,1720997438603,-500.0,0.00013917,2]
[332164937,1720997438613,-500.0,0.00013917,2]
[332164938,1720997438623,-500.0,0.00013917,2]
[332164939,1720997438632,-150.0,0.00013917,2]
[332164940,1720997438643,-500.0,0.00013917,2]
[332164941,1720997438652,-500.0,0.00013917,2]
[332164942,1720997438664,-500.0,0.00013917,2]
[332164943,1720997438674,-500.0,0.00013917,2]
[332164944,1720997438685,-500.0,0.00013917,2]
[332164945,1720997438695,-500.0,0.00013917,2]
[332164946,1720997438709,-500.0,0.00013917,2]
[332164947,1720997438718,-500.0,0.00013917,2]
[332164948,1720997438727,-500.0,0.00013917,2]
[332164949,1720997438737,-500.0,0.00013917,2]
[332164950,1720997438746,-333.48462183,0.00013917,2]
[332164951,1720997438755,-500.0,0.00013917,2]
[332164952,1720997438764,-500.0,0.00013917,2]
[332164953,1720997438772,-500.0,0.00013917,2]
[332164954,1720997438784,-397.44554851,0.00013917,2]
[332164955,1720997438794,-500.0,0.00013917,2]
[332164956,1720997438803,-500.0,0.00013917,2]
[332164957,1720997438816,-500.0,0.00013917,2]
[332164958,1720997438826,-500.0,0.00013917,2]
[332164959,1720997438837,-500.0,0.00013917,2]
[332164960,1720997438848,-500.0,0.00013917,2]
[332164961,1720997438859,-500.0,0.00013917,2]
[332164962,1720997438870,-500.0,0.00013917,2]
[332164963,1720997438881,-500.0,0.00013917,2]
[332164964,1720997438891,-500.0,0.00013917,2]
[332164965,1720997438901,-665.98,0.00013917,2]
[332164966,1720997438911,-213.07164999,0.00013917,2]
[332164967,1720997438922,-500.0,0.00013917,2]
[332164968,1720997438932,-500.0,0.00013917,2]
[332164969,1720997438941,-500.0,0.00013917,2]
[332164970,1720997438953,-500.0,0.00013917,2]
[332164971,1720997438963,-190.17692844,0.00013917,2]
[332164972,1720997438973,-500.0,0.00013917,2]
[332164973,1720997438982,-600.09,0.00013917,2]
[332164974,1720997438991,-500.0,0.00013917,2]
[332164975,1720997439001,-500.0,0.00013917,2]
[332164976,1720997439010,-636.95,0.00013917,2]
[332164977,1720997439019,-500.0,0.00013917,2]
[332164978,1720997439028,-530.99816823,0.00013917,2]
[332164979,1720997439037,-500.0,0.00013917,2]
[332164980,1720997439047,-500.0,0.00013917,2]
[332164981,1720997439056,-500.0,0.00013917,2]
[332164982,1720997439065,-500.0,0.00013917,2]
[332164983,1720997439074,-500.0,0.00013917,2]
[332164984,1720997439083,-150.93496866,0.00013917,2]
[332164985,1720997439093,-351.45338836,0.00013917,2]
[332164986,1720997439102,-500.0,0.00013917,2]
[332164987,1720997439111,-1130.77288993,0.00013964,2]
[332164988,1720997439120,-21708.6318321,0.0001397,3]
[332164989,1720997439131,-500.0,0.00013971,2]
[332164990,1720997439140,-588.17,0.00013971,2]
[332164991,1720997439150,-500.0,0.00013971,2]
[332164992,1720997439159,-562.27,0.00013971,2]
[332164993,1720997439169,-189.3927131,0.00013971,2]
[332164994,1720997439179,-500.0,0.00013971,2]
[332164995,1720997439188,-500.0,0.00013971,2]
[332164996,1720997439198,-731.49,0.00013971,2]
[332164997,1720997439210,-510.17,0.00013971,2]
[332164998,1720997439220,-771.38,0.00013971,2]
[332164999,1720997439229,-2227.63,0.00013971,2]
[332165000,1720997439239,-500.0,0.00013971,2]
[332165002,1720997439248,-500.0,0.00013971,2]
[332165003,1720997439257,-500.0,0.00013972,2]
[332165004,1720997439267,-571.47,0.00013972,2]
[332165005,1720997439276,-311.36,0.00013972,2]
[332165006,1720997439285,-617.84185555,0.00013972,2]
[332165007,1720997439295,-500.0,0.00013972,2]
[332165008,1720997439304,-248.35707851,0.00013972,2]
[332165009,1720997439313,-500.0,0.00013972,2]
[332165010,1720997439323,-500.0,0.00013972,2]
[332165011,1720997439332,-188.82,0.00013972,2]
[332165012,1720997439342,-783.83,0.00013972,2]
[332165014,1720997439351,-500.0,0.00013972,2]
[332165016,1720997439360,-1201.69,0.00013972,2]
[332165018,1720997439369,-500.0,0.00013972,2]
[332165020,1720997439378,-500.0,0.00013972,2]
[332165022,1720997439387,-173.88,0.00013972,2]
[332165024,1720997439397,-500.0,0.00013972,2]
[332165025,1720997439406,-150.0,0.00013972,2]
[332165027,1720997439416,-500.0,0.00013972,2]
[332165029,1720997439425,-500.0,0.00013972,2]
[332165031,1720997439434,-500.0,0.00013972,2]
[332165033,1720997439444,-500.0,0.00013972,2]
[332165035,1720997439453,-500.0,0.00013972,2]
[332165037,1720997439463,-500.0,0.00013972,2]
[332165039,1720997439472,-500.0,0.00013972,2]
[332165041,1720997439482,-500.0,0.00013972,2]
[332165043,1720997439491,-500.0,0.00013972,2]
[332165045,1720997439504,-500.0,0.00013972,2]
[332165047,1720997439514,-500.0,0.00013972,2]
[332165049,1720997439523,-665.98,0.00013972,2]
[332165051,1720997439532,-500.0,0.00013972,2]
[332165053,1720997439542,-500.0,0.00013972,2]
[332165055,1720997439552,-500.0,0.00013972,2]
[332165057,1720997439562,-500.0,0.00013972,2]
[332165059,1720997439572,-500.0,0.00013972,2]
[332165061,1720997439582,-600.09,0.00013972,2]
[332165063,1720997439592,-500.0,0.00013972,2]
[332165065,1720997439602,-500.0,0.00013972,2]
[332165067,1720997439611,-636.95,0.00013972,2]
[332165069,1720997439620,-500.0,0.00013972,2]
[332165071,1720997439629,-500.0,0.00013972,2]
[332165073,1720997439639,-500.0,0.00013972,2]
[332165074,1720997439649,-500.0,0.00013972,2]
[332165075,1720997439658,-500.0,0.00013972,2]
[332165076,1720997439668,-500.0,0.00013972,2]
[332165077,1720997439676,-500.0,0.00013972,2]
[332165078,1720997439685,-1000.0,0.00013973,5]
[332165079,1720997439694,-817.0,0.00013973,2]
[332165080,1720997439704,-182.0,0.00013973,2]
[332165081,1720997439714,-444.0,0.00013973,2]
[332165082,1720997439723,-619.0,0.00013973,2]
[332165083,1720997439733,-2377.0,0.00013973,2]
[332165084,1720997439742,-1253.0,0.00013973,2]
[332165085,1720997439751,-153.554,0.00013973,2]
[332165086,1720997439761,-3277.0,0.00013973,2]
[332165087,1720997439770,-549.0,0.00013973,2]
[332165088,1720997439780,-1990.0,0.00013973,2]
[332165089,1720997439789,-5816.0,0.00013973,2]
[332165091,1720997439798,-5181.0,0.00013973,2]
[332165093,1720997439808,-150.0,0.00013973,2]
[332165095,1720997439817,-38275.0,0.00013973,2]
[332165097,1720997439826,-1200.0,0.00013973,2]
[332165099,1720997439836,-1136.505,0.00013973,2]
[332165101,1720997439846,-150.0,0.00013973,2]
[332165103,1720997439856,-54271.5795804,0.0001398,3]
[332165105,1720997439866,-308.2,0.00013989,2]
[332165106,1720997439876,-195377.686489,0.0001399,3]
[332165108,1720997439885,-43417.2636643,0.0001399,3]
[332165110,1720997439895,-246.58692005,0.00013999,2]
[332165112,1720997439905,-155.0,0.00013999,2]
[332165114,1720997439915,-174.04574505,0.00013999,2]
[332165116,1720997439924,-624.51640094,0.00013999,2]
[332165118,1720997439934,-155.72385129,0.00013999,2]
[332165120,1720997439944,-718.67533476,0.00013999,2]
[332165122,1720997439954,-638.0,0.00013999,2]
[332165124,1720997439964,-2043478.74879669,0.00014,2]
[332165126,1720997439977,-290.89568695,0.00014,2]
[332165130,1720997439998,-3955.96712328,0.00014,2]
[332165132,1720997440010,-857.30470671,0.00014,2]
[332165134,1720997440021,-4167.37317591,0.00014,2]
[332165170,1720997440378,-516.36,0.00011056,2]
[332165172,1720997440389,-404.05337067,0.00011197,2]
[332165174,1720997440401,-868.59057618,0.00011197,2]
[332165176,1720997440411,-360.43,0.00013,2]
[332165178,1720997440421,-360.43,0.00013,2]
[332165181,1720997440431,-360.43,0.00013,2]
[332165183,1720997440441,-360.43,0.00013,2]
[332165185,1720997440450,-360.43,0.00013,2]
[332165187,1720997440461,-360.43,0.00013,2]
[332165189,1720997440470,-360.43,0.00013,2]
[332165191,1720997440480,-360.43,0.00013,2]
[332165193,1720997440490,-360.43,0.00013,2]
[332165195,1720997440503,-360.43,0.00013,2]
[332165197,1720997440512,-360.43,0.00013,2]
[332165199,1720997440523,-360.43,0.00013,2]
[332165201,1720997440532,-360.43,0.00013,2]
[332165203,1720997440542,-360.43,0.00013,2]
[332165205,1720997440551,-360.43,0.00013,2]
[332165207,1720997440560,-360.43,0.00013,2]
[332165209,1720997440572,-360.43,0.00013,2]
[332165211,1720997440582,-360.43,0.00013,2]
[332165213,1720997440591,-516.36,0.0001332,2]
[332165215,1720997440601,-196.365,0.00013973,2]
[332165217,1720997440611,-296.644,0.00013973,2]
[332165219,1720997440620,-279.349,0.00013973,2]
[332165221,1720997440629,-9690.6755357,0.00014,2]
[332165226,1720997440672,-360.43,0.00013,2]
[332165228,1720997440682,-360.43,0.00013,2]
[332165230,1720997440691,-360.43,0.00013,2]
[332165232,1720997440701,-29205.34931483,0.00014,2]
[332165235,1720997440713,-26718.03744393,0.00014,2]
[332165238,1720997440730,-21332.92879371,0.00014,2]
[332165249,1720997440824,-360.43,0.00013,2]
[332165251,1720997440834,-360.43,0.00013,2]
[332165253,1720997440844,-360.43,0.00013,2]
[332165255,1720997440853,-227460.68466399,0.00014,2]
[332165259,1720997440886,-360.43,0.00013,2]
[332165261,1720997440895,-459.25910007,0.00014,2]
[332165264,1720997440910,-548.94403522,0.00014,2]
[332165419,1720997442454,151.070507,0.00025,74]
[332165479,1720997443174,151.070507,0.00025,74]
[332165538,1720997443744,151.070507,0.00025,74]
[332165589,1720997444294,151.070507,0.00025,74]
[332165607,1720997444419,-360.43,0.00013386,2]
[332165609,1720997444429,-256.02468681,0.00013462,2]
[332165611,1720997444441,-104.40531319,0.00013462,2]
[332165613,1720997444450,-360.43,0.00013506,2]
[332165615,1720997444460,-360.43,0.00013506,2]
[332165617,1720997444470,-225.40459228,0.00013506,2]
[332165618,1720997444482,-135.02540772,0.00013506,2]
[332165620,1720997444492,-360.43,0.00013588,2]
[332165622,1720997444505,-360.43,0.00013588,2]
[332165624,1720997444515,-360.43,0.00013588,2]
[332165626,1720997444525,-360.43,0.00013588,2]
[332165627,1720997444535,-360.43,0.00013588,2]
[332165629,1720997444546,-360.43,0.00013588,2]
[332165631,1720997444555,-360.43,0.00013588,2]
[332165633,1720997444565,-360.43,0.00013588,2]
[332165635,1720997444576,-360.43,0.00013588,2]
[332165637,1720997444586,-360.43,0.00013588,2]
[332165639,1720997444595,-360.43,0.00013588,2]
[332165641,1720997444605,-500.0,0.00013862,2]
[332165642,1720997444614,-500.0,0.00013917,2]
[332165644,1720997444623,-500.0,0.00013972,2]
[332165646,1720997444633,-10584.17563228,0.00014,2]
[332165648,1720997444644,-2093.79820878,0.00014,2]
[332165651,1720997444670,-30756.22282231,0.00014,2]
[332165686,1720997445041,-747.85523931,0.00014,2]
[332165689,1720997445061,-360.43,0.00013588,2]
[332165691,1720997445071,-615.77732012,0.00014,2]
[332165693,1720997445083,-484.27264187,0.00014,2]
[332165698,1720997445118,151.070507,0.00025,74]
[332165792,1720997446229,-360.43,0.00013588,2]
[332165794,1720997446239,-360.43,0.00013588,2]
[332165796,1720997446248,-360.43,0.00013588,2]
[332165798,1720997446258,-360.43,0.00013589,2]
[332165801,1720997446268,-360.43,0.00013639,2]
[332165804,1720997446277,-360.43,0.00013639,2]
[332165807,1720997446286,-500.0,0.00013752,2]
[332165808,1720997446295,-500.0,0.00013807,2]
[332165810,1720997446304,-500.0,0.00013862,2]
[332165812,1720997446312,-500.0,0.00013916,2]
[332165814,1720997446321,-16977.60212047,0.00014,2]
[332165816,1720997446330,-568.0,0.00014,2]
[332165818,1720997446338,-694663.07501295,0.00014,2]
[332165820,1720997446350,-3499.87252233,0.00014,2]
[332165823,1720997446367,-360.43,0.00013643,2]
[332165825,1720997446376,-245.24764587,0.00014,2]
[332165827,1720997446387,-2536.20892993,0.00014,2]
[332165829,1720997446398,-1898.23381044,0.00014,2]
[332165833,1720997446423,-465152.28423247,0.00014,2]
[332165835,1720997446434,-1118.83805771,0.00014,2]
[332165843,1720997446503,-603.12307284,0.00014,2]
[332165965,1720997447620,151.070507,0.00025,75]
[332166013,1720997448097,151.070507,0.00025,75]
[332166064,1720997448615,151.070507,0.00025,75]
[332166107,1720997449182,151.070507,0.00025,75]
[332166166,1720997449749,151.070507,0.00025,75]
[332166982,1720997461367,151.070507,0.00027,120]
[332166983,1720997462029,151.070507,0.00027,120]
[332166984,1720997462598,151.070507,0.00027,120]
[332166985,1720997463569,151.070507,0.00027,120]
[332166986,1720997471087,151.070507,0.00027,120]
[332166987,1720997491566,210.071507,0.00027,120]
[332166988,1720997544788,151.0,0.00020469,120]
[332166989,1720997599987,587.844648,0.00025143,120]
[332166990,1720997603675,3000.0,0.00025343,120]
[332166991,1720997604135,3000.0,0.00026943,120]
[332166992,1720997748423,3307.6,0.00018849,30]
[332166993,1720997970104,151.0,0.00019663,120]
[332166994,1720998356667,3031.96,0.00018849,30]
[332166995,1720998501024,151.0,0.00020469,120]
[332167010,1720998632560,-485.65,0.00010716,2]
[332167011,1720998632570,-300.0,0.00011097,2]
[332167012,1720998632580,-1269.95880681,0.00011098,2]
[332167013,1720998632589,-581.19029726,0.00011098,2]
[332167014,1720998632599,-155.48552727,0.00011098,2]
[332167015,1720998632609,-494.07511306,0.00011098,2]
[332167016,1720998632618,-369.43044199,0.00011098,2]
[332167017,1720998632629,-178.94818853,0.00011098,2]
[332167018,1720998632639,-209.00279412,0.00011098,2]
[332167019,1720998632649,-269.96247161,0.00011197,2]
[332167020,1720998632657,-519.26994235,0.00011197,2]
[332167021,1720998632668,-156.0,0.00011197,2]
[332167022,1720998632678,-722.81429297,0.00011197,2]
[332167023,1720998632687,-156.0,0.00011197,2]
[332167024,1720998632696,-420.0,0.00012193,2]
[332167025,1720998632706,-1359.19498024,0.00012581,2]
[332167026,1720998632735,-1649.03916819,0.00012581,2]
[332167027,1720998632747,-528.72,0.00012581,2]
[332167028,1720998632759,-481.98854478,0.00012581,2]
[332167029,1720998632771,-2765.8969856,0.00012581,2]
[332167030,1720998632783,-10668.44425868,0.00012581,2]
[332167031,1720998632796,-3018.35960908,0.00012581,2]
[332167032,1720998632807,-633.6425639,0.00012581,2]
[332167033,1720998632818,-2794.71388953,0.00012581,2]
[332167034,1720998632827,-169.7,0.00012587,2]
[332167036,1720998632837,-250.0,0.00012587,2]
[332167038,1720998632846,-500.0,0.00012604,2]
[332167040,1720998632855,-1000.0,0.00012615,2]
[332167042,1720998632864,-250.0,0.00012641,2]
[332167043,1720998632873,-150.0,0.00012731,2]
[332167045,1720998632885,-168.79,0.00012732,2]
[332167047,1720998632894,-386.46878681,0.00012732,2]
[332167049,1720998632922,-10635.00121319,0.00012732,2]
[332167050,1720998632932,-158.24,0.00012732,2]
[332167051,1720998632942,-293.32,0.00012736,2]
[332167052,1720998632951,-7894.50618587,0.00012817,2]
[332167053,1720998632962,-1453.17546538,0.00012827,2]
[332167059,1720998638360,-155.0,0.00011199,2]
[332167060,1720998638371,-174.72453462,0.00012827,2]
[332167061,1720998638381,-485.65,0.0001298,2]
[332167062,1720998638391,-140.31548438,0.00013,2]
[332167063,1720998638457,-1109.68451562,0.00013,2]
[332167064,1720998638467,-174.686815,0.00013227,2]
[332167065,1720998638479,-174.686815,0.00013392,2]
[332167066,1720998638490,-587.0,0.00013398,2]
[332167067,1720998638501,-174.686815,0.00013557,2]
[332167068,1720998638510,-183.82,0.00013588,2]
[332167069,1720998638519,-183.82,0.00013588,2]
[332167070,1720998638530,-183.82,0.00013588,2]
[332167071,1720998638540,-183.82,0.00013588,2]
[332167072,1720998638549,-183.82,0.00013588,2]
[332167073,1720998638559,-183.82,0.00013588,2]
[332167074,1720998638568,-183.82,0.00013588,2]
[332167075,1720998638578,-130.80039015,0.00013588,2]
[332167076,1720998638589,-53.01960985,0.00013588,2]
[332167077,1720998638599,-183.82,0.00013588,2]
[332167078,1720998638608,-157.79446538,0.00013588,2]
[332167079,1720998638624,-26.02553462,0.00013588,2]
[332167080,1720998638633,-378.61592109,0.00013598,2]
[332167081,1720998638644,-556.38,0.00013598,2]
[332167082,1720998638655,-688.35,0.00013598,2]
[332167083,1720998638668,-2931.87895,0.00013598,2]
[332167084,1720998638680,-4186.27582778,0.00013598,2]
[332167085,1720998638738,-183.82,0.00013588,2]
[332167086,1720998638747,-25369.36434138,0.00013598,2]
[332167110,1720998640358,-183.82,0.00013588,2]
[332167111,1720998640368,-183.82,0.00013588,2]
[332167112,1720998640378,-934.26749695,0.00013598,2]
[332167113,1720998640390,-2776.36303042,0.00013598,2]
[332167114,1720998640401,-17078.4588468,0.00013598,2]
[332167115,1720998640450,-2435.38767799,0.00013598,2]
[332167116,1720998640461,-258.26659757,0.00013598,2]